[Event "19th IPCA WCC 2019"]
[Site "Ruzomberok"]
[Date "2019.07.04"]
[Round "7.7"]
[White "Sovetov, Oleksandr"]
[Black "Kovacevic, Krsto"]
[Result "0-1"]
[ECO "E33"]
[WhiteElo "2009"]
[BlackElo "2049"]
[Annotator "NA"]
[PlyCount "72"]
[EventDate "2019.06.28"]
[EventType "swiss"]
[EventCountry "SVK"]
[SourceTitle "playchess.com"]
[Source "ChessBase"]
[SourceQuality "1"]
[TimeControl "5400+30"]

1. d4 {[%emt 0:00:00]} Nf6 {[%emt 0:00:00]} 2. c4 {[%emt 0:00:00]} e6 {[%emt 0:00:00]} 3. Nc3 {[%emt 0:00:15]} Bb4 {[%emt 0:00:11]} 4. Qc2 {[%emt 0:00:48]} Nc6 {[%emt 0:00:17]} 5. Nf3 {[%emt 0:00:47]} d6 {[%emt 0:00:31]} 6. e4 {[%emt 0:03:02]} Bxc3+ {[%emt 0:03:47]} 7. bxc3 {[%emt 0:00:19]} O-O {[%emt 0:03:11]} 8. Bd3 {[%emt 0:15:06]} e5 {[%emt 0:00:26]} 9. d5 {[%emt 0:02:17]} Nb8 {[%emt 0:02:28]} 10. c5 {[%emt 0:02:35]} Nbd7 {[%emt 0:09:28]} 11. cxd6 {[%emt 0:01:35]} cxd6 {[%emt 0:00:14]} 12. Ba3 {[%emt 0:00:43]} Qc7 {[%emt 0:00:15]} 13. O-O {[%emt 0:03:36]} Nc5 {[%emt 0:00:17]} 14. Nd2 {[%emt 0:00:43]} Bd7 {[%emt 0:01:46]} 15. Nb3 {[%emt 0:01:37]} b6 {[%emt 0:12:24]} 16. Bxc5 {[%emt 0:02:24]} bxc5 {[%emt 0:00:14]} 17. Nd2 {[%emt 0:00:35]} Rab8 {[%emt 0:02:53]} 18. Rab1 {[%emt 0:03:55]} h6 {[%emt 0:13:40]} 19. Nc4 {[%emt 0:13:46]} Rxb1 {[%emt 0:04:48]} 20. Rxb1 {[%emt 0:00:16]} Rb8 {[%emt 0:00:12]} 21. Rb3 {[%emt 0:05:50]} Kf8 {[%emt 0:06:16]} 22. f3 {[%emt 0:03:10]} Ne8 {[%emt 0:03:34]} 23. Qb2 {[%emt 0:02:17]} Rxb3 {[%emt 0:00:19]} 24. Qxb3 {[%emt 0:01:18]} Bc8 {[%emt 0:00:23]} 25. Qb5 {[%emt 0:18:46]} Qb7 {[%emt 0:05:59]} 26. Qc6 {[%emt 0:00:41]} Qxc6 {[%emt 0:00:54]} 27. dxc6 Be6 {[%emt 0:05:59]} 28. a4 {[%emt 0:13:43]} Bxc4 {[%emt 0:01:13]} 29. Bxc4 {[%emt 0:00:02]} a5 {[%emt 0:00:46]} 30. Kf2 {[%emt 0:00:03]} Nc7 {[%emt 0:01:28]} 31. Kg3 Ke7 {[%emt 0:03:03]} 32. h4 {[%emt 0:01:40]} Ne6 {[%emt 0:02:15]} 33. Kg4 {[%emt 0:02:22]} g6 {[%emt 0:03:12]} 34. Kg3 Kd8 {[%emt 0:03:37]} 35. Kf2 {[%emt 0:02:36]} Kc7 36. Bd5 {[%emt 0:00:40]} Nd8 {[%emt 0:00:38]} 0-1

[Event "19th IPCA WCC 2019"]
[Site "Ruzomberok"]
[Date "2019.07.04"]
[Round "7.8"]
[White "Tersinsev, Andrey"]
[Black "Gedgafov, Chamal"]
[Result "0-1"]
[ECO "A45"]
[WhiteElo "2164"]
[BlackElo "2163"]
[Annotator "NA"]
[PlyCount "90"]
[EventDate "2019.06.28"]
[EventType "swiss"]
[EventCountry "SVK"]
[SourceTitle "playchess.com"]
[Source "ChessBase"]
[SourceQuality "1"]
[TimeControl "5400+30"]

1. d4 {[%emt 0:00:00]} Nf6 {[%emt 0:00:00]} 2. Nc3 {[%emt 0:00:22]} d5 {[%emt 0:03:17]} 3. Bf4 {[%emt 0:00:14]} c6 {[%emt 0:00:45]} 4. e3 {[%emt 0:00:18]} Bf5 {[%emt 0:01:00]} 5. f3 {[%emt 0:00:39]} e6 {[%emt 0:01:09]} 6. g4 {[%emt 0:00:35]} Bg6 {[%emt 0:00:43]} 7. h4 {[%emt 0:00:10]} h6 {[%emt 0:00:55]} 8. h5 {[%emt 0:01:25]} Bh7 {[%emt 0:00:10]} 9. Bd3 {[%emt 0:00:25]} Bd6 {[%emt 0:03:13]} 10. Nge2 {[%emt 0:04:25]} Qc7 {[%emt 0:04:26]} 11. Bxh7 {[%emt 0:05:16]} Nxh7 {[%emt 0:00:36]} 12. Qd3 {[%emt 0:00:39]} Nd7 {[%emt 0:02:02]} 13. Bxd6 {[%emt 0:08:44]} Qxd6 {[%emt 0:00:07]} 14. e4 {[%emt 0:00:14]} dxe4 {[%emt 0:06:16]} 15. Nxe4 {[%emt 0:01:35]} Qe7 {[%emt 0:02:18]} 16. c4 {[%emt 0:03:42]} Nhf6 {[%emt 0:08:35]} 17. N2c3 {[%emt 0:03:29]} O-O-O {[%emt 0:06:06]} 18. O-O-O {[%emt 0:09:02]} Nxe4 {[%emt 0:07:46]} 19. Nxe4 {[%emt 0:00:38]} Nf6 {[%emt 0:05:18]} 20. Nc5 {[%emt 0:03:04]} b6 {[%emt 0:02:17]} 21. Na4 {[%emt 0:05:37]} Rd7 {[%emt 0:01:55]} 22. Kb1 {[%emt 0:06:54]} Rhd8 {[%emt 0:03:22]} 23. Qc3 {[%emt 0:15:02]} c5 {[%emt 0:02:39]} 24. d5 {[%emt 0:04:34]} exd5 {[%emt 0:00:30]} 25. Rhe1 {[%emt 0:00:11]} Qf8 {[%emt 0:00:16]} 26. Qa3 {[%emt 0:01:10]} Rd6 {[%emt 0:02:58]} 27. cxd5 {[%emt 0:02:04]} Rxd5 {[%emt 0:08:31]} 28. Rc1 {[%emt 0:01:34]} Kb8 {[%emt 0:03:57]} 29. Nc3 {[%emt 0:01:41]} Rd3 {[%emt 0:01:04]} 30. Qa4 {[%emt 0:01:00]} R8d4 {[%emt 0:04:24]} 31. Qa6 {[%emt 0:02:23]} Qc8 {[%emt 0:01:43]} 32. Qxc8+ {[%emt 0:02:35]} Kxc8 {[%emt 0:00:08]} 33. Nb5 {[%emt 0:00:15]} Rd7 {[%emt 0:02:02]} 34. b4 {[%emt 0:00:11]} a6 {[%emt 0:01:22]} 35. Nc3 {[%emt 0:00:10]} cxb4 {[%emt 0:01:14]} 36. Nd5+ {[%emt 0:00:25]} Kb7 {[%emt 0:00:18]} 37. Nxf6 {[%emt 0:02:50]} gxf6 {[%emt 0:00:06]} 38. Rf1 {[%emt 0:02:41]} a5 {[%emt 0:00:45]} 39. Rce1 {[%emt 0:00:18]} Rd2 {[%emt 0:00:25]} 40. Re8 {[%emt 0:00:39]} Rg2 {[%emt 0:00:33]} 41. Rh8 {[%emt 0:01:31]} Rdd2 {[%emt 0:00:25]} 42. Rxh6 {[%emt 0:00:13]} Rb2+ {[%emt 0:00:06]} 43. Kc1 {[%emt 0:00:36]} Rxa2 {[%emt 0:00:08]} 44. Kb1 {[%emt 0:00:08]} a4 {[%emt 0:00:12]} 45. Rxf6 {[%emt 0:00:16]} a3 {[%emt 0:00:12]} 0-1

[Event "19th IPCA WCC 2019"]
[Site "Ruzomberok"]
[Date "2019.07.04"]
[Round "7.9"]
[White "Shashikant, Kutwal"]
[Black "Belak, Stefan"]
[Result "1-0"]
[ECO "C10"]
[WhiteElo "2176"]
[BlackElo "1851"]
[Annotator "NA"]
[PlyCount "93"]
[EventDate "2019.06.28"]
[EventType "swiss"]
[EventCountry "SVK"]
[SourceTitle "playchess.com"]
[Source "ChessBase"]
[SourceQuality "1"]
[TimeControl "5400+30"]

1. e4 {[%emt 0:00:00]} e6 2. d4 d5 {[%emt 0:03:39]} 3. Nc3 {[%emt 0:00:22]} h6 {[%emt 0:00:06]} 4. Nf3 {[%emt 0:00:47]} Nf6 {[%emt 0:00:08]} 5. e5 {[%emt 0:04:32]} Ne4 {[%emt 0:01:11]} 6. Bd3 {[%emt 0:04:23]} Nxc3 {[%emt 0:00:11]} 7. bxc3 {[%emt 0:00:07]} c5 {[%emt 0:00:06]} 8. O-O {[%emt 0:01:21]} Nc6 {[%emt 0:00:16]} 9. Re1 {[%emt 0:02:44]} Qa5 {[%emt 0:01:52]} 10. Bd2 {[%emt 0:12:51]} c4 {[%emt 0:00:15]} 11. Bf1 {[%emt 0:00:19]} Bd7 {[%emt 0:00:08]} 12. h4 {[%emt 0:02:23]} Qa4 {[%emt 0:00:49]} 13. Nh2 {[%emt 0:01:41]} Be7 {[%emt 0:00:30]} 14. h5 {[%emt 0:03:54]} O-O-O {[%emt 0:00:20]} 15. g3 {[%emt 0:00:48]} Rdg8 {[%emt 0:00:41]} 16. Ng4 {[%emt 0:01:17]} Kb8 {[%emt 0:01:26]} 17. Bh3 {[%emt 0:01:02]} Bc8 {[%emt 0:05:08]} 18. a3 {[%emt 0:03:52]} Ka8 {[%emt 0:00:20]} 19. Kh2 {[%emt 0:02:24]} Nd8 {[%emt 0:05:04]} 20. f4 {[%emt 0:07:30]} Re8 {[%emt 0:07:54]} 21. Ne3 {[%emt 0:03:48]} Nc6 {[%emt 0:03:58]} 22. f5 {[%emt 0:04:38]} Bg5 {[%emt 0:00:43]} 23. Rf1 {[%emt 0:00:13]} Rhf8 {[%emt 0:16:58]} 24. f6 {[%emt 0:05:02]} gxf6 {[%emt 0:00:37]} 25. exf6 {[%emt 0:01:35]} Qa5 {[%emt 0:07:22]} 26. Ng4 {[%emt 0:11:08]} Rh8 {[%emt 0:02:31]} 27. Re1 {[%emt 0:11:51]} Reg8 {[%emt 0:04:44]} 28. Qc1 {[%emt 0:07:27]} Qc7 {[%emt 0:01:44]} 29. Bf4 {[%emt 0:00:45]} Bxf4 {[%emt 0:04:53]} 30. Qxf4 {[%emt 0:00:11]} Qxf4 {[%emt 0:01:17]} 31. gxf4 {[%emt 0:00:02]} Kb8 {[%emt 0:00:40]} 32. Rg1 {[%emt 0:00:39]} Kc7 {[%emt 0:00:35]} 33. Ne3 {[%emt 0:02:45]} Rf8 {[%emt 0:02:44]} 34. Rg7 {[%emt 0:00:48]} Bd7 {[%emt 0:00:31]} 35. f5 {[%emt 0:00:28]} Kd6 {[%emt 0:01:18]} 36. fxe6 {[%emt 0:00:21]} Bxe6 {[%emt 0:07:43]} 37. Bxe6 {[%emt 0:01:21]} fxe6 {[%emt 0:00:17]} 38. Rf1 {[%emt 0:00:55]} Nd8 {[%emt 0:00:35]} 39. Ng4 {[%emt 0:00:43]} Nf7 {[%emt 0:06:16]} 40. Re1 {[%emt 0:00:30]} Ng5 {[%emt 0:07:02]} 41. Ne5 {[%emt 0:00:49]} Rd8 {[%emt 0:00:23]} 42. Rxb7 {[%emt 0:00:26]} Rhf8 {[%emt 0:01:01]} 43. Rf1 {[%emt 0:00:19]} Rg8 {[%emt 0:04:51]} 44. Rxa7 {[%emt 0:00:18]} Rge8 {[%emt 0:01:21]} 45. Rb1 {[%emt 0:00:24]} Nf3+ {[%emt 0:00:57]} 46. Nxf3 {[%emt 0:00:09]} Rb8 {[%emt 0:00:24]} 47. Ne5 {[%emt 0:00:26]} 1-0

[Event "19th IPCA WCC 2019"]
[Site "Ruzomberok"]
[Date "2019.07.04"]
[Round "7.10"]
[White "Jennitha, Anto K."]
[Black "Obodchuk, Andrei"]
[Result "0-1"]
[ECO "B20"]
[WhiteElo "1972"]
[BlackElo "2316"]
[Annotator "NA"]
[PlyCount "76"]
[EventDate "2019.06.28"]
[EventType "swiss"]
[EventCountry "SVK"]
[SourceTitle "playchess.com"]
[Source "ChessBase"]
[SourceQuality "1"]
[TimeControl "5400+30"]

1. e4 {[%emt 0:00:00]} c5 {[%emt 0:00:00]} 2. b3 {[%emt 0:00:00]} g6 {[%emt 0:00:09]} 3. Bb2 {[%emt 0:00:00]} Nf6 {[%emt 0:00:07]} 4. Qf3 {[%emt 0:00:21]} d6 {[%emt 0:02:53]} 5. Bb5+ {[%emt 0:00:08]} Nbd7 {[%emt 0:00:31]} 6. Nc3 {[%emt 0:03:21]} Bg7 {[%emt 0:00:11]} 7. O-O-O {[%emt 0:05:17]} O-O {[%emt 0:00:28]} 8. h3 {[%emt 0:01:52]} a6 {[%emt 0:03:44]} 9. Be2 {[%emt 0:01:01]} Ne5 {[%emt 0:02:30]} 10. Qe3 {[%emt 0:01:50]} b5 {[%emt 0:00:29]} 11. f4 {[%emt 0:06:30]} Nc6 {[%emt 0:00:58]} 12. g4 {[%emt 0:09:19]} b4 {[%emt 0:01:12]} 13. Na4 {[%emt 0:02:36]} Nd4 {[%emt 0:01:07]} 14. Nf3 {[%emt 0:02:20]} Nxe2+ {[%emt 0:03:13]} 15. Qxe2 {[%emt 0:00:02]} Bb7 {[%emt 0:00:40]} 16. d3 {[%emt 0:11:19]} Bc6 {[%emt 0:00:15]} 17. Kb1 {[%emt 0:09:18]} c4 {[%emt 0:10:43]} 18. Bxf6 {[%emt 0:08:35]} exf6 {[%emt 0:04:37]} 19. dxc4 {[%emt 0:05:33]} Re8 {[%emt 0:00:23]} 20. Nb2 {[%emt 0:02:12]} Bxe4 {[%emt 0:00:56]} 21. Qf2 {[%emt 0:00:31]} f5 {[%emt 0:00:45]} 22. g5 {[%emt 0:05:58]} Qc7 {[%emt 0:09:37]} 23. Rhe1 {[%emt 0:05:39]} d5 {[%emt 0:00:33]} 24. Nd4 {[%emt 0:03:37]} Rad8 {[%emt 0:00:52]} 25. Rd2 {[%emt 0:02:24]} Rd7 {[%emt 0:08:10]} 26. Red1 {[%emt 0:01:05]} Red8 {[%emt 0:00:34]} 27. h4 {[%emt 0:04:09]} h5 {[%emt 0:02:59]} 28. Qg1 {[%emt 0:04:51]} dxc4 {[%emt 0:01:31]} 29. Nxc4 {[%emt 0:00:31]} Rd5 {[%emt 0:04:45]} 30. Qe3 {[%emt 0:00:55]} Qc5 {[%emt 0:04:07]} 31. Ne6 {[%emt 0:03:31]} Qxe3 {[%emt 0:01:49]} 32. Nxe3 {[%emt 0:00:03]} fxe6 {[%emt 0:00:52]} 33. Nxd5 {[%emt 0:00:11]} exd5 {[%emt 0:00:11]} 34. Kc1 {[%emt 0:00:42]} Rc8 {[%emt 0:00:18]} 35. Rh2 {[%emt 0:00:57]} Rc3 {[%emt 0:01:03]} 36. Rdd2 {[%emt 0:00:21]} Rg3 {[%emt 0:00:24]} 37. Rd1 {[%emt 0:00:21]} Rf3 {[%emt 0:00:12]} 38. Rdd2 {[%emt 0:00:54]} Rxf4 {[%emt 0:00:10]} 0-1

[Event "19th IPCA WCC 2019"]
[Site "Ruzomberok"]
[Date "2019.07.04"]
[Round "7.11"]
[White "Wielecki, Zygmunt"]
[Black "Gerasimova, Svetlana"]
[Result "1/2-1/2"]
[ECO "C62"]
[WhiteElo "2145"]
[BlackElo "1913"]
[Annotator "NA"]
[PlyCount "48"]
[EventDate "2019.06.28"]
[EventType "swiss"]
[EventCountry "SVK"]
[SourceTitle "playchess.com"]
[Source "ChessBase"]
[SourceQuality "1"]
[TimeControl "5400+30"]

1. e4 {[%emt 0:00:00]} e5 {[%emt 0:00:00]} 2. Nf3 {[%emt 0:00:00]} Nc6 {[%emt 0:00:00]} 3. Bb5 {[%emt 0:00:05]} d6 {[%emt 0:00:00]} 4. d4 {[%emt 0:00:12]} a6 {[%emt 0:00:00]} 5. Ba4 {[%emt 0:01:02]} b5 {[%emt 0:00:05]} 6. Bb3 {[%emt 0:00:07]} Be7 {[%emt 0:04:08]} 7. c3 {[%emt 0:00:59]} Nf6 {[%emt 0:00:42]} 8. O-O {[%emt 0:01:45]} O-O {[%emt 0:00:03]} 9. a4 {[%emt 0:03:48]} Bg4 {[%emt 0:01:03]} 10. Be3 {[%emt 0:01:17]} Na5 {[%emt 0:04:53]} 11. Bc2 {[%emt 0:00:13]} Nc4 {[%emt 0:00:37]} 12. Bc1 {[%emt 0:00:07]} c5 {[%emt 0:00:45]} 13. b3 {[%emt 0:03:31]} Nb6 {[%emt 0:01:52]} 14. dxe5 {[%emt 0:03:05]} Bxf3 {[%emt 0:00:14]} 15. Qxf3 {[%emt 0:00:13]} dxe5 {[%emt 0:00:02]} 16. Qe2 {[%emt 0:06:58]} c4 {[%emt 0:01:20]} 17. a5 {[%emt 0:02:14]} cxb3 {[%emt 0:00:39]} 18. Bxb3 {[%emt 0:00:06]} Nbd7 {[%emt 0:00:19]} 19. c4 {[%emt 0:02:07]} Nc5 {[%emt 0:00:53]} 20. Rd1 {[%emt 0:04:38]} Qc7 {[%emt 0:00:27]} 21. Bc2 {[%emt 0:00:31]} b4 {[%emt 0:01:13]} 22. Nd2 {[%emt 0:00:54]} Rfd8 {[%emt 0:01:19]} 23. Re1 {[%emt 0:06:25]} Rab8 {[%emt 0:03:39]} 24. Nb3 Ne6 1/2-1/2

[Event "19th IPCA WCC 2019"]
[Site "Ruzomberok"]
[Date "2019.07.04"]
[Round "7.12"]
[White "Jurkiewicz, Krzysztof"]
[Black "Roehrig, Uwe"]
[Result "1-0"]
[ECO "E91"]
[WhiteElo "2275"]
[BlackElo "1802"]
[Annotator "NA"]
[PlyCount "47"]
[EventDate "2019.06.28"]
[EventType "swiss"]
[EventCountry "SVK"]
[SourceTitle "playchess.com"]
[Source "ChessBase"]
[SourceQuality "1"]
[TimeControl "5400+30"]

1. d4 {[%emt 0:00:00]} Nf6 {[%emt 0:00:00]} 2. c4 {[%emt 0:00:00]} g6 {[%emt 0:00:00]} 3. Nc3 {[%emt 0:00:00]} Bg7 {[%emt 0:00:09]} 4. e4 {[%emt 0:00:00]} d6 {[%emt 0:00:17]} 5. Be2 {[%emt 0:00:02]} O-O {[%emt 0:00:22]} 6. Nf3 {[%emt 0:00:10]} Nbd7 {[%emt 0:02:13]} 7. Bg5 {[%emt 0:01:43]} h6 {[%emt 0:01:51]} 8. Bh4 {[%emt 0:00:18]} Nh7 {[%emt 0:01:49]} 9. O-O {[%emt 0:03:39]} Qe8 {[%emt 0:01:52]} 10. Rc1 {[%emt 0:16:27]} c5 {[%emt 0:05:06]} 11. Nd5 {[%emt 0:02:01]} g5 {[%emt 0:02:43]} 12. Bg3 {[%emt 0:00:29]} Qd8 {[%emt 0:01:16]} 13. h3 {[%emt 0:05:36]} Nb6 {[%emt 0:02:19]} 14. dxc5 {[%emt 0:02:37]} Nxd5 {[%emt 0:02:43]} 15. cxd5 {[%emt 0:00:04]} Bxb2 {[%emt 0:00:25]} 16. Rc2 {[%emt 0:03:01]} Bg7 {[%emt 0:00:50]} 17. cxd6 {[%emt 0:00:16]} exd6 {[%emt 0:02:30]} 18. Nd4 {[%emt 0:12:05]} f5 {[%emt 0:02:59]} 19. Nxf5 {[%emt 0:00:52]} Bxf5 {[%emt 0:00:15]} 20. exf5 {[%emt 0:00:05]} Rxf5 {[%emt 0:00:11]} 21. Bg4 {[%emt 0:00:48]} Rf7 {[%emt 0:02:08]} 22. Be6 {[%emt 0:00:20]} Nf6 {[%emt 0:07:08]} 23. Qf3 {[%emt 0:02:31]} Qf8 {[%emt 0:02:23]} 24. Rc7 {[%emt 0:01:02]} 1-0

[Event "19th IPCA WCC 2019"]
[Site "Ruzomberok"]
[Date "2019.07.04"]
[Round "7.13"]
[White "Tsapalin, Sergey"]
[Black "Kozicz, Andrzej"]
[Result "1-0"]
[ECO "D31"]
[WhiteElo "1935"]
[BlackElo "1979"]
[Annotator "NA"]
[PlyCount "61"]
[EventDate "2019.06.28"]
[EventType "swiss"]
[EventCountry "SVK"]
[SourceTitle "playchess.com"]
[Source "ChessBase"]
[SourceQuality "1"]
[TimeControl "5400+30"]

1. d4 {[%emt 0:00:00]} d5 2. c4 e6 {[%emt 0:00:40]} 3. Nc3 {[%emt 0:00:20]} f5 4. Nf3 c6 {[%emt 0:01:33]} 5. Bf4 {[%emt 0:00:39]} Bd6 {[%emt 0:00:29]} 6. e3 {[%emt 0:00:19]} Nf6 {[%emt 0:00:19]} 7. Bd3 {[%emt 0:00:12]} O-O {[%emt 0:01:08]} 8. Qc2 {[%emt 0:00:23]} Ne4 {[%emt 0:00:25]} 9. O-O {[%emt 0:00:22]} Qe7 {[%emt 0:01:53]} 10. Bxd6 {[%emt 0:03:21]} Qxd6 {[%emt 0:00:07]} 11. Ne5 {[%emt 0:00:24]} Nd7 {[%emt 0:04:00]} 12. f4 {[%emt 0:00:29]} Ndf6 {[%emt 0:00:33]} 13. c5 {[%emt 0:00:56]} Qe7 {[%emt 0:00:03]} 14. b4 {[%emt 0:00:58]} Bd7 {[%emt 0:02:45]} 15. a4 {[%emt 0:00:53]} Nxc3 {[%emt 0:00:53]} 16. Qxc3 {[%emt 0:00:07]} Rfc8 {[%emt 0:01:52]} 17. Rfb1 {[%emt 0:01:31]} Ne4 {[%emt 0:00:32]} 18. Bxe4 {[%emt 0:00:29]} fxe4 {[%emt 0:00:47]} 19. Qe1 {[%emt 0:07:52]} a6 {[%emt 0:05:22]} 20. Rb2 {[%emt 0:01:09]} Be8 {[%emt 0:00:27]} 21. h4 {[%emt 0:01:34]} Bf7 {[%emt 0:04:24]} 22. g4 {[%emt 0:00:51]} Kh8 {[%emt 0:00:12]} 23. h5 {[%emt 0:02:02]} g5 {[%emt 0:00:56]} 24. hxg6 {[%emt 0:00:22]} hxg6 {[%emt 0:01:33]} 25. g5 {[%emt 0:02:20]} Kg7 {[%emt 0:00:04]} 26. Rh2 {[%emt 0:00:31]} Rh8 {[%emt 0:00:01]} 27. Raa2 {[%emt 0:00:17]} Rxh2 {[%emt 0:03:57]} 28. Rxh2 Rh8 {[%emt 0:00:01]} 29. Rxh8 {[%emt 0:04:42]} Kxh8 {[%emt 0:00:30]} 30. Qh4+ {[%emt 0:00:13]} Kg8 {[%emt 0:04:50]} 31. Ng4 {[%emt 0:00:51]} 1-0

[Event "19th IPCA WCC 2019"]
[Site "Ruzomberok"]
[Date "2019.07.04"]
[Round "7.14"]
[White "Zavarsky, Juraj"]
[Black "Pamarthi Audietya Aazadh"]
[Result "1-0"]
[ECO "B78"]
[WhiteElo "2000"]
[BlackElo "1346"]
[Annotator "NA"]
[PlyCount "147"]
[EventDate "2019.06.28"]
[EventType "swiss"]
[EventCountry "SVK"]
[SourceTitle "playchess.com"]
[Source "ChessBase"]
[SourceQuality "1"]
[TimeControl "5400+30"]

1. e4 {[%emt 0:00:00]} c5 {[%emt 0:00:00]} 2. Nf3 {[%emt 0:00:00]} d6 {[%emt 0:00:00]} 3. d4 {[%emt 0:00:00]} cxd4 {[%emt 0:00:00]} 4. Nxd4 {[%emt 0:00:00]} g6 {[%emt 0:00:00]} 5. Nc3 {[%emt 0:01:09]} Bg7 {[%emt 0:00:06]} 6. Be3 {[%emt 0:02:31]} Nf6 {[%emt 0:00:56]} 7. Bc4 {[%emt 0:00:19]} O-O {[%emt 0:00:49]} 8. f3 {[%emt 0:00:23]} Nc6 {[%emt 0:00:29]} 9. Qd2 {[%emt 0:00:45]} Bd7 {[%emt 0:00:18]} 10. O-O-O {[%emt 0:00:27]} Na5 {[%emt 0:00:11]} 11. Be2 {[%emt 0:07:13]} a6 {[%emt 0:02:29]} 12. Nb3 {[%emt 0:05:40]} Nxb3+ {[%emt 0:00:54]} 13. cxb3 {[%emt 0:01:53]} Rc8 {[%emt 0:00:23]} 14. Kb1 {[%emt 0:00:08]} b5 {[%emt 0:00:55]} 15. g4 {[%emt 0:06:37]} Rb8 {[%emt 0:00:36]} 16. h4 b4 {[%emt 0:03:19]} 17. Nd5 {[%emt 0:11:01]} Nxd5 {[%emt 0:01:04]} 18. exd5 {[%emt 0:01:35]} Bb5 {[%emt 0:00:39]} 19. h5 {[%emt 0:02:34]} Qd7 {[%emt 0:03:29]} 20. Bxb5 {[%emt 0:04:35]} Rxb5 {[%emt 0:00:20]} 21. Bh6 {[%emt 0:04:23]} f5 {[%emt 0:07:08]} 22. hxg6 {[%emt 0:09:07]} hxg6 {[%emt 0:00:26]} 23. Bxg7 {[%emt 0:00:26]} Kxg7 {[%emt 0:00:15]} 24. Qd4+ {[%emt 0:08:52]} Kf7 {[%emt 0:03:13]} 25. Rh7+ {[%emt 0:00:06]} Ke8 {[%emt 0:00:14]} 26. Rh8 {[%emt 0:00:16]} e5 {[%emt 0:00:59]} 27. dxe6 {[%emt 0:00:44]} Qxe6 {[%emt 0:00:18]} 28. Rxf8+ {[%emt 0:02:53]} Kxf8 {[%emt 0:00:14]} 29. Qxd6+ {[%emt 0:01:18]} Qxd6 {[%emt 0:01:44]} 30. Rxd6 {[%emt 0:00:02]} Kf7 {[%emt 0:00:36]} 31. Kc2 {[%emt 0:05:10]} fxg4 {[%emt 0:00:13]} 32. fxg4 {[%emt 0:00:10]} Rg5 {[%emt 0:00:23]} 33. Rd4 {[%emt 0:00:09]} a5 {[%emt 0:00:25]} 34. Kd3 {[%emt 0:00:17]} Ke6 {[%emt 0:00:38]} 35. Ke3 {[%emt 0:00:56]} Rc5 {[%emt 0:00:10]} 36. Rc4 {[%emt 0:00:17]} Rd5 {[%emt 0:00:22]} 37. Rc6+ {[%emt 0:01:32]} Kf7 {[%emt 0:00:50]} 38. Ra6 {[%emt 0:00:29]} Re5+ {[%emt 0:00:28]} 39. Kf4 {[%emt 0:00:17]} Rc5 {[%emt 0:00:08]} 40. Ke4 {[%emt 0:03:00]} Rg5 {[%emt 0:00:12]} 41. Ra7+ {[%emt 0:01:20]} Kf6 {[%emt 0:00:24]} 42. Kf4 {[%emt 0:00:31]} Rc5 {[%emt 0:00:02]} 43. g5+ {[%emt 0:00:48]} Ke6 {[%emt 0:00:10]} 44. Rg7 {[%emt 0:00:31]} Rf5+ {[%emt 0:00:44]} 45. Kg4 {[%emt 0:00:12]} Rf2 {[%emt 0:00:12]} 46. Rxg6+ {[%emt 0:00:05]} Ke5 {[%emt 0:00:29]} 47. Ra6 {[%emt 0:00:14]} Rxb2 {[%emt 0:00:45]} 48. Rxa5+ {[%emt 0:00:06]} Ke6 {[%emt 0:00:06]} 49. Kh5 {[%emt 0:00:35]} Kf7 {[%emt 0:00:03]} 50. Ra7+ {[%emt 0:00:16]} Ke6 {[%emt 0:00:05]} 51. Kh6 {[%emt 0:01:24]} Rh2+ 52. Kg7 {[%emt 0:00:18]} Rg2 {[%emt 0:01:13]} 53. g6 {[%emt 0:00:34]} Rg4 {[%emt 0:01:06]} 54. Ra4 {[%emt 0:02:31]} Rd4 {[%emt 0:00:33]} 55. Ra7 {[%emt 0:00:47]} Rg4 {[%emt 0:00:04]} 56. Rf7 {[%emt 0:00:14]} Rg2 {[%emt 0:00:18]} 57. Rf4 {[%emt 0:01:05]} Rxa2 {[%emt 0:00:39]} 58. Rxb4 {[%emt 0:00:05]} Ra7+ {[%emt 0:00:32]} 59. Kh6 {[%emt 0:00:08]} Ra2 {[%emt 0:00:30]} 60. Re4+ {[%emt 0:00:52]} Kf6 {[%emt 0:00:11]} 61. Rf4+ {[%emt 0:00:23]} Ke5 {[%emt 0:00:15]} 62. Rf3 {[%emt 0:00:35]} Ke6 {[%emt 0:00:15]} 63. Kh7 {[%emt 0:00:29]} Rh2+ {[%emt 0:00:16]} 64. Kg8 {[%emt 0:00:10]} Ke7 {[%emt 0:00:31]} 65. g7 {[%emt 0:01:21]} Rh4 {[%emt 0:01:11]} 66. Re3+ {[%emt 0:00:16]} Kd7 {[%emt 0:00:19]} 67. Kf7 {[%emt 0:00:26]} Rf4+ {[%emt 0:00:15]} 68. Kg6 {[%emt 0:00:17]} Rg4+ {[%emt 0:00:02]} 69. Kh7 {[%emt 0:01:13]} Rh4+ {[%emt 0:00:10]} 70. Kg8 {[%emt 0:00:04]} Kd8 {[%emt 0:02:23]} 71. Re5 {[%emt 0:00:22]} Kd7 {[%emt 0:00:29]} 72. Kf7 {[%emt 0:00:13]} Rf4+ {[%emt 0:00:28]} 73. Kg6 {[%emt 0:00:10]} Kd6 {[%emt 0:02:48]} 74. Rg5 {[%emt 0:00:12] Kd5} 1-0